Cogmind - Beta 10.2 @@@ ROGUE MODE // 2020.10.30 @ 18:41:11 // Halloween2020/ForbiddenLore Player: PlasticHeart Result: Destroyed by D-53 Grenadier with Mini Grenade Launcher Performance ------------- Evolutions (0) 0 Regions Visited (2) 400 Robots Destroyed (25) 125 Value Destroyed (518) 518 Prototype IDs (0) 0 Alien Tech Used (0) 0 Bonus (0) 0 TOTAL SCORE: 1043 Bonus ------- None Cogmind --------- Core Integrity 0/250 Matter 253/300 Energy 100/100 System Corruption 0% Temperature Cool (0) Movement Core (400) Ox7 Location -10/Mines Parts ------- > --- POWER (1) -------- (None) > --- PROPULSION (2) --- (None) > --- UTILITY (2) ------ Medium Storage Unit Large Storage Unit > --- WEAPON (2) ------- (None) > --- INVENTORY (14) --- Ion Engine Wheel Wheel Compact Wheel Compact Wheel Compact Wheel Compact Wheel Improved Heat Sink Medium Storage Unit Medium Storage Unit Hacking Suite Peak State ------------ > --- POWER ------------ Light Nuclear Core > --- PROPULSION ------- Wheel Compact Wheel > --- UTILITY ---------- Medium Storage Unit Large Storage Unit > --- WEAPON ----------- Assault Rifle Assault Rifle > --- INVENTORY -------- Ion Engine Ion Engine Compact Wheel Compact Wheel Compact Wheel Compact Wheel Improved Heat Sink Hacking Suite [Rating: 10] Favorites ----------- Power Ion Engine Engine Ion Engine Power Core Light Nuclear Core Propulsion Wheel Wheel Wheel Utility Small Storage Unit Storage Small Storage Unit Weapon Assault Rifle Ballistic Gun Assault Rifle Build | -11 -10 -10 ------- Run | Scr Mat Min Slots Evolved . | . . . Power . | . . . Propulsion . | . . . Utility . | . . . Weapon . | . . . Parts Attached 14 | 6 6 2 Power 3 | 1 2 . Engine 2 | 1 1 . Core 1 | . 1 . Reactor . | . . . Propulsion 3 | 2 1 . Treads . | . . . Leg . | . . . Wheel 3 | 2 1 . Hover . | . . . Flight . | . . . Utility 4 | 1 3 . Device . | . . . Storage 4 | 1 3 . Processor . | . . . Hackware . | . . . Protection . | . . . Artifact . | . . . Weapon 4 | 2 . 2 Energy Gun . | . . . Energy Cannon . | . . . Ballistic Gun 4 | 2 . 2 Ballistic Cannon . | . . . Launcher . | . . . Special Weapon . | . . . Impact Weapon . | . . . Slashing Weapon . | . . . Piercing Weapon . | . . . Special Melee Weapon . | . . . Unidentified Prototypes . | . . . Parts Lost 8 | . 1 7 Power 2 | . 1 1 Propulsion 2 | . . 2 Utility . | . . . Weapon 4 | . . 4 Highest Loss Streak 7 | . 1 7 Average Slot Usage (%) 92 | . 95 73 Engine 9 | . 10 . Core 3 | . 2 11 Wheel 26 | . 28 16 Storage 24 | . 24 28 Ballistic Gun 26 | . 28 16 Naked Turns . | . . . Heaviest Build 33 | 13 33 31 Greatest Support 26 | 26 26 26 Greatest Overweight (x) 7 | 1 1 7 Average Overweight (x) . | . . 2 Largest Inventory Capacity 14 | 6 14 14 Average Capacity 9 | 5 10 14 Most Carried 11 | 6 11 11 Average Carried 6 | 3 6 11 Final Capacity 14 | 6 14 14 Final Carried 11 | 5 11 11 Class Distribution -------------------- 96% | Mutant 3% | Scavenger-Mutant Dominant Class ---------------- Mutant | -10/Materials Mutant | -10/Mines Resources | -11 -10 -10 ----------- Run | Scr Mat Min Matter Collected 682 | 290 373 19 Remotely . | . . . Salvage Created 817 | 77 694 46 Parts 58 | 7 47 4 Haulers Intercepted 2 | . 2 . Recyclers Shooed . | . . . Parts Field Recycled . | . . . Retrieved Matter . | . . . Parts Self-Destructed . | . . . Prevented . | . . . Kills | -11 -10 -10 ------- Run | Scr Mat Min Combat Hostiles Destroyed 14 | . 11 3 Guns 14 | . 11 3 Classes Destroyed 9 | 2 6 1 Worker 2 | . 2 . Builder 1 | . 1 . Tunneler 1 | 1 . . Hauler 2 | . 2 . Recycler 1 | 1 . . Operator 3 | . 3 . Watcher 1 | . 1 . Swarmer 3 | . . 3 Grunt 11 | . 11 . Best Kill Streak 6 | 2 6 3 Combat Bots Only 5 | . 5 3 Max Kills in Single Turn 1 | 1 1 1 Gunslinging . | . . . Exploded . | . . . Melee . | . . . Uniques/NPCs Destroyed . | . . . Combat | -11 -10 -10 -------- Run | Scr Mat Min Damage Taken 1044 | . 360 684 Core 250 | . 62 188 Absorbed by Shields . | . . . Core Remaining (%) 100 | 100 . . Volleys Fired 80 | 5 63 12 Largest 2 | 2 2 2 Hottest 40 | 40 40 40 Shots Fired 149 | 10 126 13 Gun 149 | 10 126 13 Cannon . | . . . Launcher . | . . . Special . | . . . Kinetic 149 | 10 126 13 Thermal . | . . . Explosive . | . . . Electromagnetic . | . . . Robot Hit Streak 8 | 3 8 3 Robot Miss Streak 4 | 1 4 2 Penetration Max . | . . . Secondary Targets . | . . . Shots Hit Robots 96 | 7 83 6 Core Hits 41 | 3 34 4 Critical Hits . | . . . Critical Kills . | . . . Critical Parts Destroyed . | . . . Melee Attacks . | . . . Impact . | . . . Slashing . | . . . Piercing . | . . . Sneak Attacks . | . . . Combat Hostiles . | . . . Follow-up Attacks . | . . . Damage Inflicted 1223 | 91 1058 74 Guns 1223 | 91 1058 74 Cannons . | . . . Explosions . | . . . Melee . | . . . Ramming . | . . . Kinetic 1223 | 91 1058 74 Thermal . | . . . Explosive . | . . . Electromagnetic . | . . . Impact . | . . . Slashing . | . . . Piercing . | . . . Highest Corruption . | . . . Average Corruption . | . . . Corruption Purged . | . . . Overload Shots . | . . . Overflow Damage . | . . . Projectiles . | . . . Explosions . | . . . Melee . | . . . Knockbacks . | . . . Impact . | . . . Kinetic . | . . . Secondary . | . . . Self-Inflicted Damage . | . . . Shots . | . . . Rammed . | . . . Targets Rammed . | . . . Kicked . | . . . Crushed . | . . . Highest Temperature 6 | . 6 4 Average Temperature 2 | . 3 2 Received Heat Transfer 201 | . 201 . Siege Activations . | . . . Robots Corrupted . | . . . Combat Hostiles . | . . . Parts Fried . | . . . Impact Corruptions . | . . . Robots Melted . | . . . Combat Hostiles . | . . . Parts Melted . | . . . Heat Transferred . | . . . Parts Sabotaged . | . . . Parts Stolen . | . . . Parts Stripped . | . . . Power Chain Reactions . | . . . Missiles Intercepted . | . . . Alert | -11 -10 -10 ------- Run | Scr Mat Min Peak Influence 367 | 10 367 55 Initial 6 | . 6 . Average 169 | 2 216 36 Maximum Alert Level 1 | . 1 . Low Security (%) 52 | 100 37 100 Level 1 47 | . 62 . Level 2 . | . . . Level 3 . | . . . Level 4 . | . . . Level 5 . | . . . High Security . | . . . Max Security . | . . . Squads Dispatched 3 | . 3 . Investigation . | . . . Extermination . | . . . Reinforcement 3 | . 3 . Assault . | . . . Garrison . | . . . Intercept . | . . . Construction Impeded . | . . . Haulers Reinforced . | . . . Stealth | -11 -10 -10 --------- Run | Scr Mat Min Distress Signals 3 | . 3 . Communications Jammed . | . . . Distress Signals . | . . . Times Spotted 28 | . 23 5 Peak Tracking Total 5 | . 5 3 Tactical Retreats . | . . . Traps | -11 -10 -10 ------- Run | Scr Mat Min Traps Triggered . | . . . Indirectly . | . . . Trap Hack Attempts . | . . . Triggered . | . . . Disarmed . | . . . Reprogrammed . | . . . Reused . | . . . Traps Extracted . | . . . Installed . | . . . Triggered . | . . . Machines | -11 -10 -10 ---------- Run | Scr Mat Min Machines Disabled . | . . . Max in Single Turn . | . . . Machines Sabotaged . | . . . Garrisons Compromised . | . . . Overloaded Fab Kills . | . . . Fab Network Shutdowns . | . . . Hacking | -11 -10 -10 --------- Run | Scr Mat Min Machines Accessed 3 | . 3 . Terminals 3 | . 3 . Fabricators . | . . . Repair Stations . | . . . Recycling Units . | . . . Scanalyzers . | . . . Garrison Access . | . . . Total Hacks 9 | . 9 . Successful 6 | . 6 . Failed 3 | . 3 . Catastrophic 1 | . 1 . Database Lockouts . | . . . Manual . | . . . Terminals 9 | . 9 . Fabricators . | . . . Repair Stations . | . . . Recycling Units . | . . . Scanalyzers . | . . . Garrison Access . | . . . Terminal Hacks 6 | . 6 . Robot Analysis 1 | . 1 . Alert Level 1 | . 1 . Unreport Threat 2 | . 2 . Locate Traps 1 | . 1 . Zone Layout 1 | . 1 . Fabricator Hacks . | . . . Repair Station Hacks . | . . . Recycling Unit Hacks . | . . . Scanalyzer . | . . . Garrison Access Hacks . | . . . Unauthorized Hacks . | . . . Terminals . | . . . Fabricators . | . . . Repair Stations . | . . . Recycling Units . | . . . Scanalyzers . | . . . Garrison Access . | . . . Data Cores Recovered . | . . . Used . | . . . Hacking Detections 1 | . 1 . Full Trace Events . | . . . Feedback Events . | . . . Feedback Blocked . | . . . Robot Schematics Acquired . | . . . Robots Built . | . . . Matter . | . . . Time . | . . . Total Robot Build Rating . | . . . Part Schematics Acquired . | . . . Parts Built . | . . . Matter . | . . . Time . | . . . Total Part Build Rating . | . . . Parts Repaired . | . . . Time . | . . . Parts Recycled . | . . . Recycled Matter . | . . . Retrieved Matter . | . . . Retrieved Components . | . . . Parts Scanalyzed . | . . . Part Schematics Acquired . | . . . Parts Damaged . | . . . Bothacking | -11 -10 -10 ------------ Run | Scr Mat Min Used RIF Installer . | . . . Robots Hacked . | . . . Non-combat . | . . . Combat . | . . . Robot Hacks Applied . | . . . Relay Couplers Released . | . . . Robots Rewired . | . . . Allies Hacked . | . . . Hacks Repelled . | . . . Allies | -11 -10 -10 -------- Run | Scr Mat Min Total Allies . | . . . Largest Group . | . . . Highest-Rated Group . | . . . Highest-Rated Ally . | . . . Total Orders . | . . . Ally Attacks . | . . . Total Damage . | . . . Kills . | . . . Allies Corrupted . | . . . Allies Melted . | . . . Intel | -11 -10 -10 ------- Run | Scr Mat Min Robot Analysis Total 1 | . 1 . Derelict Logs Recovered . | . . . Drone Launches . | . . . Drone Recoveries . | . . . Exploration | -11 -10 -10 ------------- Run | Scr Mat Min Turns Passed 580 | 80 442 58 Spaces Moved 294 | 57 213 24 Core 39 | 38 . 1 Treads . | . . . Legs . | . . . Wheels 255 | 19 213 23 Hover . | . . . Flight . | . . . Fastest Speed 50 | 50 90 100 Average Speed 94 | 86 94 116 Slowest Speed 400 | 100 100 400 Overloaded Moves . | . . . Propulsion Burnouts . | . . . Robots Hopped . | . . . Cave-ins Triggered . | . . . Exploration Rate (%) 22 | 4 46 17 Regions Visited 2 Branch Regions 1 Pre-discovered Areas . | . . . Known Exits Taken . | . . . Unknown Exits Taken 2 | 1 1 . Scrap Searched . | . . . Spaces Dug . | . . . Terrain Destroyed . | . . . Melee . | . . . Projectile . | . . . AOE . | . . . Terrain Rammed . | . . . Walls Destroyed . | . . . Machines Disabled . | . . . Actions | -11 -10 -10 --------- Run | Scr Mat Min Total 448 | 77 327 44 Wait 41 | . 35 6 Move 292 | 56 212 24 Hop . | . . . Pick Up 17 | 10 7 . Fast Attach 4 | 1 1 2 Attach 6 | 5 1 . Detach . | . . . Swap 4 | . 4 . Drop 4 | . 4 . Fire 80 | 5 63 12 Melee . | . . . Ram . | . . . Kick . | . . . Crush . | . . . Escape Stasis . | . . . Rewire . | . . . Trap . | . . . Miscellaneous . | . . . Route ------- -11/Scrapyard -10/Materials (discovered 3 exits: [Mat] / [*Min x2]) -10/Mines (discovered 1 exit: [*Mat]) History --------- Turn | Location | Event 26 | -11/Scrapyard | Discovered new exit (range 15) 81 | -11/Scrapyard | Entered Materials 320 | -10/Materials | Build established: Mutant 335 | -10/Materials | Discovered new exit (range 12) 397 | -10/Materials | Discovered new exit (range 11) 506 | -10/Materials | Discovered new exit (range 16) 523 | -10/Materials | Entered Mines 524 | -10/Mines | Assembled infested the area 571 | -10/Mines | Core integrity fell below 50% 574 | -10/Mines | Discovered new exit (range 8) 578 | -10/Mines | Core integrity fell below 20% 581 | -10/Mines | Destroyed by D-53 Grenadier with Mini Grenade Launcher Last Messages --------------- 00528_ S-10 Pest destroyed. 00531_ Acquired Lgt. Assault Rifle. 00532_ Assault Rifle destroyed. 00537_ S-10 Pest destroyed. 00540_ Com. Wheel destroyed. 00547_ S-10 Pest destroyed. 00549_ Acquired 19 matter. 00552_ Acquired Lgt. Assault Rifle. 00570_ Lgt. Assault Rifle destroyed. 00570_ Lgt. Nuclear Core destroyed. 00570_ U-05 Engineer lays Concrete. 00571_ The unstable cave ceiling collapses. 00572_ U-05 Engineer destroyed. 00573_ The unstable cave ceiling collapses. 00574_ Lgt. Assault Rifle destroyed. 00574_ K-01 Serf destroyed. 00574_ EXIT=FOUND 00575_ The unstable cave ceiling collapses. 00577_ T-07 Excavator destroyed. 00579_ Wheel destroyed. Map ----- +----------------------------------------------------+ | ???????????????????????????????????????????????? | | ???????????????????????????????????????????????? | | ???????????????????????????????????????????????? | | ????????????????????### #???????###????????????? | | ?????????????????? ?# #????## ##???????????? | | ??????????????????# # ??### #???????????? | | ??????????????????# # ### #???????????? | | ??????????????????# # %% #???????????? | | ??????????????????# #[ ##???????????? | | ??????????????????# = #* ###????????????? | | ??????????????###### ## ###?????????????? | | ?????????????## # # # #?????????????? | | ?????????????# # % ##????????????? | | ?????????????# < ?# #????????????? | | ?????????????# ## # ####?????????? | | ?????????????# # # # ## ???????? | | ?????????????# # dd ??? | | ?????????????# ??? | | ?????????????# ## ??? | | ??????????????# #?? ??? | | ???????????????# ###??? ???? | | ???????????????# ###??????### ???? | | ????????????????? ##???????????? #???? | | ??????????????????## #???????????????????? | | ??????????????????# #???????????????????? | | ??????????????????# @ #???????????????????? | | ??????????????????### #?????????????????? | | ????????????????????# ??????????????? | | ???????????????????t """ #???????????? | | ?????????????????? k """??#???????????? | | ?????????????????########## """??????????????? | | ???????????????????????????# ??????????????? | | ????????????????????????????# #?????????????? | | ?????????????????????????????#####?????????????? | | ???????????????????????????????????????????????? | | ???????????????????????????????????????????????? | | ???????????????????????????????????????????????? | | ???????????????????????????????????????????????? | | ???????????????????????????????????????????????? | | ???????????????????????????????????????????????? | | ???????????????????????????????????????????????? | | | | | | | | | | | | | | | | | | | +----------------------------------------------------+ Best States ------------- Heat Dissipation 25 Energy Generation 14 Energy Capacity 250 Matter Stores 300 Matter Capacity 300 Sight Range 16 Terrain Scan Density 10 Evasion (%) 50 Item Schematics ----------------- None Robot Schematics ------------------ None Fabricated ------------ Nothing Alien Tech Used ----------------- None Achievements -------------- None Challenges ------------ None Game ------ Seed NetworkFrostWell Manual? 0 Play Time 00:07:14 Cumulative 791.1 hours Start 2020.10.30 @ 18:34:15 End 2020.10.30 @ 18:41:11 Sessions 1 Manual Loads 0 Difficulty Rogue Special Mode Halloween2020/ForbiddenLore Game No. 421 Rogue 421 Adventurer 0 Explorer 0 Win Type - Total 64 Types 35/5/13/6/1/1/3/0/0 Lore% 89 Gallery% 89 Achievement% 76 Wizard Run 0 Options --------- ASCII 0 Keyboard 0 Movement Mouse Keybinds 0 Fullscreen 0 Font 32/Smallcaps Map View 76x50 Tactical HUD 1 Map Filters NONE Filters NONE Steam 0 RUN: 7daf1b01-7fd4-4a70-bfb6-cd13c0807a5f